bitfinex/quotes_BTCUSD_20220304
["timestamp","ask_amount","ask_price","bid_price","bid_amount"]
[1646387264465,0.73101981,41688.0,41687.0,0.16862999]
[1646387264664,0.93604634,41688.0,41687.0,0.16862999]
[1646387265466,0.57068334,41688.0,41687.0,0.16862999]
[1646387265671,0.93604634,41688.0,41687.0,0.16862999]
[1646387265903,0.06247816,41678.0,41675.0,0.19793311]
[1646387266102,0.06247816,41678.0,41674.0,0.19793311]
[1646387266502,0.06247816,41678.0,41671.0,0.24741639]
[1646387266503,0.06247816,41678.0,41673.0,0.19793311]
[1646387266702,0.725397,41677.0,41673.0,0.19793311]
[1646387266903,0.725397,41677.0,41670.0,0.19793311]
[1646387267102,0.725397,41677.0,41669.0,0.19793311]
[1646387267302,0.06449029,41671.0,41669.0,0.19763611]
[1646387267502,0.06449029,41671.0,41667.0,0.001]
[1646387267802,0.22668144,41670.0,41667.0,0.001]
[1646387268002,0.06449029,41671.0,41667.0,0.001]
[1646387268204,0.048,41676.0,41667.0,0.001]
[1646387268609,0.048,41676.0,41667.0,0.301]
[1646387269201,0.048,41676.0,41671.0,0.2294289]
[1646387270663,0.048,41676.0,41667.0,0.19717975]
[1646387271064,0.043,41676.0,41667.0,0.19917975]
[1646387271266,0.043,41676.0,41667.0,0.003]
[1646387271663,0.043,41676.0,41670.0,0.21821911]
[1646387272263,0.043,41676.0,41667.0,0.003]
[1646387273164,0.043,41676.0,41670.0,0.27288127]
[1646387273396,0.1,41679.0,41670.0,0.27288127]
[1646387273798,0.36339418,41680.0,41670.0,0.27288127]
[1646387274193,0.13749907,41680.0,41670.0,0.27288127]
[1646387274395,0.13549907,41680.0,41670.0,0.27288127]
[1646387274595,0.03549907,41680.0,41670.0,0.27288127]
[1646387275196,0.03549907,41680.0,41674.0,0.16329578]
[1646387275597,0.365363,41679.0,41667.0,0.304]
[1646387275797,0.1,41678.0,41667.0,0.304]
[1646387275999,0.03549907,41680.0,41667.0,0.301]
[1646387276497,0.03549907,41680.0,41668.0,0.16177077]
[1646387276797,0.03549907,41680.0,41674.0,0.23017222]
[1646387277448,0.03549907,41680.0,41669.0,0.19814166]
[1646387277851,0.03549907,41680.0,41675.0,0.19282935]
[1646387278052,0.03549907,41680.0,41670.0,0.3]
[1646387278454,0.03549907,41680.0,41675.0,0.23837647]
[1646387279057,0.03549907,41680.0,41676.0,0.17910282]
[1646387279258,0.03549907,41680.0,41675.0,0.23837647]
[1646387279456,0.03549907,41680.0,41670.0,0.3]
[1646387280257,0.03549907,41680.0,41670.0,0.4967316]
[1646387280458,0.22667945,41675.0,41669.0,0.19814166]
[1646387280658,0.060034,41676.0,41668.0,0.51538186]
[1646387281308,0.060034,41676.0,41668.0,0.46538186]
[1646387281504,0.060034,41676.0,41670.0,0.20113848]
[1646387281705,0.060034,41676.0,41668.0,0.46538186]
[1646387282105,0.060034,41676.0,41668.0,0.51538186]
[1646387282705,0.03549907,41680.0,41672.0,0.18816758]
[1646387282905,0.26381572,41679.0,41669.0,0.19814166]
[1646387283505,0.26381572,41679.0,41668.0,0.46538186]
[1646387283907,0.26381572,41679.0,41670.0,0.17218244]
[1646387284545,0.03549907,41680.0,41670.0,0.17218244]
[1646387285345,0.03549907,41680.0,41669.0,0.19814166]
[1646387285548,0.22154609,41677.0,41668.0,0.46538186]
[1646387285747,0.120072,41679.0,41668.0,0.46538186]
[1646387285947,0.120072,41679.0,41668.0,0.2672402]
[1646387286147,0.120072,41679.0,41667.0,0.50544684]
[1646387286148,0.06004,41673.0,41667.0,0.001]
[1646387287152,0.06004,41673.0,41671.0,0.27565976]
[1646387287351,0.062032,41677.0,41671.0,0.27565976]
[1646387288304,0.002,41677.0,41671.0,0.27565976]
[1646387288504,0.03549907,41680.0,41671.0,0.27565976]
[1646387288709,0.060029,41683.0,41671.0,0.27565976]
[1646387289006,0.38326732,41686.0,41672.0,0.365363]
[1646387289211,0.38326732,41686.0,41674.0,0.365363]
[1646387289212,0.001,41681.0,41674.0,0.365363]
[1646387289405,0.001,41681.0,41678.0,0.18306791]
[1646387289604,0.001,41681.0,41680.0,0.24235129]
[1646387289809,0.001,41681.0,41678.0,0.18306791]
[1646387290206,0.001,41681.0,41674.0,0.365363]
[1646387290406,0.001,41681.0,41673.0,0.49814166]
[1646387290407,0.0305823,41686.0,41673.0,0.54814166]
[1646387290606,0.06603101,41682.0,41673.0,0.35]
[1646387290808,0.06603101,41682.0,41676.0,0.26192753]
[1646387291009,0.06603101,41682.0,41673.0,0.55561487]
[1646387291208,0.06603101,41682.0,41673.0,0.72341952]
[1646387291408,0.06603101,41682.0,41673.0,0.55561487]
[1646387291608,0.06603101,41682.0,41673.0,0.35]
[1646387292056,0.06603101,41682.0,41673.0,0.05]
[1646387292256,0.06603101,41682.0,41672.0,0.29814166]
[1646387292457,0.05812117,41674.0,41671.0,0.21759166]
[1646387292658,0.19273278,41680.0,41671.0,0.01945]
[1646387292860,0.365363,41679.0,41671.0,0.01945]
[1646387293059,0.002,41676.0,41671.0,0.01945]
[1646387293258,0.25765207,41674.0,41671.0,0.01945]
[1646387293458,0.365363,41673.0,41671.0,0.01945]
[1646387293661,0.42389318,41673.0,41671.0,0.01945]
[1646387293860,0.8288904,41673.0,41671.0,0.01945]
[1646387294060,0.285104,41672.0,41671.0,0.01945]
[1646387294362,1.02585614,41673.0,41671.0,0.01945]
[1646387294560,1.02585614,41673.0,41667.0,0.001]
[1646387294561,2.50967325,41672.0,41667.0,0.001]
[1646387294758,0.19816604,41669.0,41667.0,0.001]
[1646387294958,0.6917847,41668.0,41667.0,0.001]
[1646387295158,0.36535,41666.0,41664.0,0.001]
[1646387295359,0.47093361,41666.0,41664.0,0.001]
[1646387295659,0.964563,41666.0,41664.0,0.001]
[1646387295898,1.41506316,41666.0,41664.0,0.001]
[1646387296699,0.64452871,41665.0,41664.0,0.001]
[1646387296902,0.41335,41665.0,41664.0,0.001]
[1646387297298,0.41335,41665.0,41664.0,0.00059671]
[1646387297299,0.69258246,41665.0,41664.0,0.00059671]
[1646387297698,0.41335,41665.0,41664.0,0.00059671]
[1646387301780,1.40147699,41665.0,41664.0,0.00059671]
[1646387302186,0.80335,41665.0,41664.0,0.00059671]
[1646387302679,1.091075,41665.0,41664.0,0.00059671]
[1646387302980,0.66335,41665.0,41664.0,0.00059671]
[1646387304007,0.80335,41665.0,41664.0,0.00059671]
[1646387304810,0.80335,41665.0,41660.0,0.001]
[1646387305008,0.80335,41665.0,41655.0,0.001]
[1646387305009,0.425417,41663.0,41655.0,0.001]
[1646387305209,0.43582465,41662.0,41655.0,0.001]
[1646387305411,0.36535,41661.0,41655.0,0.001]
[1646387305608,0.048,41660.0,41655.0,0.001]
[1646387305810,0.62558109,41659.0,41655.0,0.001]
[1646387306009,0.26338852,41658.0,41655.0,0.001]
[1646387306309,0.43931372,41657.0,41655.0,0.001]
[1646387306608,0.41335,41656.0,41655.0,0.001]
[1646387308252,0.048,41656.0,41655.0,0.001]
[1646387308654,0.41335,41656.0,41655.0,0.001]
[1646387308853,0.048,41656.0,41655.0,0.001]
[1646387309253,0.41335,41656.0,41655.0,0.001]
[1646387310055,0.048,41656.0,41655.0,0.001]
[1646387310800,0.41335,41656.0,41655.0,0.001]
[1646387311001,0.71335,41656.0,41655.0,0.001]
[1646387311411,0.71335,41656.0,41646.0,0.001]
[1646387311412,0.36535,41654.0,41639.0,0.44655805]
[1646387311603,1.4,41655.0,41639.0,0.001]
[1646387311604,0.19486078,41645.0,41639.0,0.001]
[1646387311804,0.36535,41644.0,41639.0,0.001]
[1646387312003,0.6903622,41644.0,41639.0,0.001]
[1646387312205,0.43150156,41644.0,41639.0,0.001]
[1646387312804,0.02393655,41643.0,41639.0,0.001]
[1646387313003,0.36535,41643.0,41639.0,0.001]
[1646387313203,0.38928627,41643.0,41639.0,0.001]
[1646387313805,0.68928627,41643.0,41639.0,0.001]
[1646387314009,0.84949299,41643.0,41639.0,0.001]
[1646387314207,0.68928627,41643.0,41639.0,0.001]
[1646387315055,0.68919042,41643.0,41639.0,0.001]
[1646387315258,0.68909429,41643.0,41639.0,0.001]
[1646387315558,0.68890203,41643.0,41639.0,0.001]
[1646387315755,0.66535,41643.0,41639.0,0.001]
[1646387316656,0.84647007,41643.0,41639.0,0.001]
[1646387317861,1.4,41642.0,41623.0,0.19814166]
[1646387318060,1.4,41642.0,41622.0,0.0011]
[1646387318061,0.41335,41641.0,41622.0,0.0011]
[1646387318301,0.4,41640.0,41622.0,0.0011]
[1646387318502,0.41335,41639.0,41622.0,0.0011]
[1646387318702,0.1,41638.0,41622.0,0.0011]
[1646387318902,0.18387132,41635.0,41622.0,0.0011]
[1646387319102,0.41335,41634.0,41622.0,0.0011]
[1646387319301,0.71335,41633.0,41622.0,0.0011]
[1646387319702,0.41335,41633.0,41622.0,0.0011]
[1646387320302,0.71335,41633.0,41625.0,0.16053576]
[1646387320505,0.41335,41633.0,41622.0,0.0011]
[1646387321302,0.41335,41633.0,41625.0,0.2212914]
[1646387321802,0.41335,41633.0,41622.0,0.0011]
[1646387322664,0.71335,41633.0,41622.0,0.0011]
[1646387323465,0.81335,41633.0,41622.0,0.0011]
[1646387323663,0.81335,41633.0,41621.0,0.01]
[1646387323664,0.20210094,41622.0,41621.0,0.0071]
[1646387323862,1.18887398,41622.0,41621.0,0.0071]
[1646387324061,0.88887398,41622.0,41621.0,0.0071]
[1646387324263,1.4,41621.0,41607.0,0.118]
[1646387324463,1.28376751,41621.0,41607.0,0.118]
[1646387324763,0.06883609,41615.0,41607.0,0.118]
[1646387324963,0.06883609,41615.0,41603.0,0.18388527]
[1646387325162,0.26702164,41614.0,41603.0,0.18388527]
[1646387325363,0.4153,41620.0,41603.0,0.18388527]
[1646387326401,0.4153,41620.0,41610.0,0.215046]
[1646387326402,0.0634612,41615.0,41610.0,0.215046]
[1646387326602,0.25679993,41618.0,41610.0,0.215046]
[1646387326803,0.4153,41620.0,41604.0,0.121]
[1646387327003,0.4153,41620.0,41604.0,0.171]
[1646387327203,0.007,41619.0,41610.0,0.21276793]
[1646387327603,0.007,41619.0,41610.0,0.40285813]
[1646387327803,0.007,41619.0,41616.0,0.22713687]
[1646387328404,0.048,41621.0,41616.0,0.22713687]
[1646387328806,0.10478182,41624.0,41610.0,0.45285813]
[1646387329106,0.001,41623.0,41610.0,0.50285813]
[1646387329305,0.001,41623.0,41617.0,0.21320886]
[1646387329761,0.001,41623.0,41617.0,0.26320886]
[1646387329957,0.001,41623.0,41619.0,0.23324275]
[1646387330158,0.001,41623.0,41610.0,0.3851702]
[1646387330358,0.20216745,41624.0,41610.0,0.171]
[1646387330559,0.20216745,41624.0,41610.0,0.221]
[1646387330761,0.03554153,41624.0,41610.0,0.221]
[1646387330959,0.03554153,41624.0,41612.0,8.982e-05]
[1646387331259,0.03554153,41624.0,41619.0,0.25216006]
[1646387331458,0.03554153,41624.0,41612.0,8.982e-05]
[1646387331658,0.24239608,41624.0,41613.0,0.15882227]
[1646387331858,0.03554153,41624.0,41613.0,0.15882227]
[1646387332460,0.03554153,41624.0,41615.0,0.21689424]
[1646387333404,0.03554153,41624.0,41618.0,0.21519566]
[1646387333600,0.03554153,41624.0,41615.0,0.26689424]
[1646387334203,0.03054153,41624.0,41615.0,0.26689424]
[1646387334703,0.03054153,41624.0,41619.0,0.27806684]
[1646387334904,0.02554153,41624.0,41619.0,0.27806684]
[1646387335104,0.02554153,41624.0,41615.0,0.26689424]
[1646387335404,0.02554153,41624.0,41615.0,0.21689424]
[1646387336006,0.02554153,41624.0,41617.0,7.411e-05]
[1646387336007,0.09875906,41624.0,41617.0,7.411e-05]
[1646387336206,0.09875906,41624.0,41617.0,0.26411495]
[1646387336604,0.02554153,41624.0,41617.0,0.26411495]
[1646387338577,0.21656334,41622.0,41617.0,7.411e-05]
[1646387338777,0.05682169,41622.0,41617.0,7.411e-05]
[1646387338977,0.02554153,41624.0,41617.0,7.411e-05]
[1646387340801,0.02554153,41624.0,41611.0,0.34412335]
[1646387341004,0.02554153,41624.0,41611.0,0.39412335]
[1646387341208,0.02554153,41624.0,41618.0,0.24374439]
[1646387341606,0.02554153,41624.0,41611.0,0.39412335]
[1646387342105,0.08789775,41624.0,41611.0,0.39412335]
[1646387342504,0.08789775,41624.0,41611.0,0.22970678]
[1646387342704,0.28648804,41623.0,41616.0,0.25858342]
[1646387342904,0.08789775,41624.0,41616.0,0.25858342]
[1646387344853,0.02554153,41624.0,41616.0,0.25858342]
[1646387345056,0.1166,41627.0,41617.0,0.28175788]
[1646387345253,0.27377196,41630.0,41616.0,0.35858342]
[1646387345254,0.002,41630.0,41616.0,0.38266342]
[1646387345552,0.002,41630.0,41624.0,0.28899595]
[1646387346357,0.00034468,41631.0,41624.0,0.28899595]
[1646387346753,0.08524468,41633.0,41624.0,0.28899595]
[1646387347154,0.08624468,41633.0,41624.0,0.28899595]
[1646387347555,0.06640551,41632.0,41621.0,0.048]
[1646387347754,0.08624468,41633.0,41621.0,0.048]
[1646387347755,0.05464395,41625.0,41621.0,0.048]
[1646387347958,0.05464395,41625.0,41619.0,0.1]
[1646387348154,0.05464395,41625.0,41616.0,0.05]
[1646387348404,0.05464395,41625.0,41615.0,0.2138]
[1646387348608,0.27969215,41625.0,41615.0,0.05]
[1646387348804,0.27969215,41625.0,41613.0,0.05008964]
[1646387348805,0.49388986,41625.0,41613.0,0.05008964]
[1646387349008,0.27969215,41625.0,41613.0,8.964e-05]
[1646387349205,0.05464395,41625.0,41613.0,8.964e-05]
[1646387349806,0.40176299,41631.0,41613.0,8.964e-05]
[1646387350006,0.33981849,41631.0,41613.0,8.964e-05]
[1646387350207,0.33981849,41631.0,41622.0,0.20310175]
[1646387350208,0.62035903,41631.0,41622.0,0.20310175]
[1646387350606,0.28054054,41631.0,41622.0,0.20310175]
[1646387351007,0.06245993,41627.0,41622.0,0.20310175]
[1646387351406,0.06245993,41627.0,41615.0,0.4]
[1646387352654,0.06245993,41627.0,41621.0,0.22590282]
[1646387353055,0.048,41632.0,41621.0,0.22590282]
[1646387353253,0.001,41631.0,41621.0,0.22590282]
[1646387354453,0.001,41631.0,41621.0,0.06188746]
[1646387354454,0.06809576,41627.0,41621.0,0.06188746]
[1646387354655,0.001,41631.0,41621.0,0.06188746]
[1646387355056,0.001,41631.0,41621.0,0.36188746]
[1646387355256,0.005,41630.0,41621.0,0.36188746]
[1646387355557,0.005,41630.0,41621.0,0.06188746]
[1646387355806,0.06287705,41629.0,41621.0,0.36188746]
[1646387356003,0.06287705,41629.0,41621.0,0.06188746]
[1646387356204,0.06287705,41629.0,41617.0,8.893e-05]
[1646387357410,0.06287705,41629.0,41620.0,0.24311729]
[1646387358204,0.001,41631.0,41620.0,0.24311729]
[1646387358607,0.001,41631.0,41621.0,0.17487332]
[1646387358807,0.001,41631.0,41624.0,0.16167469]
[1646387359413,0.05776087,41630.0,41621.0,0.17487332]
[1646387359690,0.34645317,41630.0,41621.0,0.17487332]
[1646387360491,0.34645317,41630.0,41622.0,0.21513126]
[1646387360692,0.34645317,41630.0,41620.0,0.24311729]
[1646387361091,0.34645317,41630.0,41622.0,7.337e-05]
[1646387361092,0.54301124,41630.0,41622.0,7.337e-05]
[1646387361296,0.25431894,41630.0,41622.0,7.337e-05]
[1646387362096,0.19655807,41629.0,41622.0,7.337e-05]
[1646387362292,0.3,41628.0,41622.0,7.337e-05]
[1646387362491,0.16833601,41626.0,41622.0,7.337e-05]
[1646387362695,0.49655807,41628.0,41622.0,7.337e-05]
[1646387362893,0.19655807,41626.0,41622.0,7.337e-05]
[1646387363091,0.0593979,41623.0,41622.0,7.337e-05]
[1646387364704,0.19655807,41625.0,41622.0,7.337e-05]
[1646387366208,0.05976773,41624.0,41615.0,0.18329975]
[1646387366405,0.2563258,41624.0,41615.0,0.18329975]
[1646387366603,0.2563258,41624.0,41616.0,0.21499456]
[1646387366903,0.2563258,41624.0,41615.0,0.23329975]
[1646387366904,0.19655807,41623.0,41615.0,0.43144141]
[1646387367155,0.19655807,41623.0,41618.0,0.23357899]
[1646387368261,0.19655807,41623.0,41618.0,0.28357899]
[1646387368458,0.45989571,41624.0,41618.0,0.28357899]
[1646387368657,0.45989571,41624.0,41618.0,0.05]
[1646387368858,0.5287431,41624.0,41616.0,0.24814166]
[1646387369057,0.45989571,41624.0,41616.0,0.24814166]
[1646387369959,0.45989571,41624.0,41618.0,0.16444335]
[1646387370158,0.19655807,41624.0,41618.0,0.16444335]
[1646387370357,0.19655807,41624.0,41618.0,0.05]
[1646387370802,0.06320978,41623.0,41617.0,0.2537119]
[1646387371001,0.06320978,41623.0,41617.0,0.05]
[1646387371202,0.06320978,41623.0,41616.0,0.19814166]
[1646387371203,0.06320978,41623.0,41616.0,0.24814166]
[1646387371502,0.25976785,41623.0,41616.0,0.24814166]
[1646387372101,0.20752825,41622.0,41616.0,0.47994815]
[1646387372504,0.40408632,41622.0,41617.0,0.186969]
[1646387372900,0.20752825,41622.0,41617.0,0.186969]
[1646387373401,0.25976785,41623.0,41617.0,0.186969]
[1646387373601,0.19655807,41622.0,41617.0,0.186969]
[1646387373800,0.19655807,41622.0,41615.0,0.19814166]
[1646387374204,0.19655807,41622.0,41615.0,0.24814166]
[1646387374402,0.19655807,41623.0,41615.0,0.24814166]
[1646387374651,0.19655807,41623.0,41618.0,0.22436735]
[1646387375655,0.269898,41623.0,41615.0,0.24814166]
[1646387375854,0.19655807,41623.0,41615.0,0.24814166]
[1646387376855,0.19655807,41623.0,41616.0,0.26853203]
[1646387377457,0.17655807,41623.0,41616.0,0.26853203]
[1646387377858,0.20947391,41623.0,41616.0,0.26853203]
[1646387378057,0.31101116,41624.0,41617.0,0.19896978]
[1646387378058,0.06456411,41624.0,41617.0,0.19896978]
[1646387378304,0.31101116,41624.0,41615.0,0.05]
[1646387378503,0.31101116,41624.0,41613.0,0.05]
[1646387379105,0.34623107,41624.0,41613.0,0.05]
[1646387379307,0.28166696,41624.0,41617.0,0.23136407]
[1646387379505,0.03521991,41624.0,41617.0,0.23136407]
[1646387379705,0.03521991,41624.0,41617.0,0.28136407]
[1646387380106,0.24644705,41627.0,41617.0,0.28136407]
[1646387380310,0.24644705,41628.0,41617.0,0.23136407]
[1646387380505,0.24644705,41628.0,41624.0,0.23441531]
[1646387380706,0.24644705,41628.0,41616.0,0.43226667]
[1646387380907,0.24644705,41629.0,41616.0,0.43226667]
[1646387381309,0.2,41624.0,41616.0,0.18485028]
[1646387381707,0.2,41624.0,41619.0,0.21310257]
[1646387382460,0.2,41624.0,41619.0,0.26310257]
[1646387383063,0.2,41624.0,41623.0,0.15805559]
[1646387383262,0.2,41624.0,41623.0,0.20605559]
[1646387383463,0.2,41624.0,41623.0,0.20105559]
[1646387384463,0.2,41624.0,41622.0,0.33220439]
[1646387384663,0.2,41624.0,41623.0,0.048]
[1646387385063,0.2,41624.0,41623.0,0.06254657]
[1646387386405,0.2,41624.0,41623.0,0.048]
[1646387388608,0.2,41624.0,41623.0,0.06072767]
[1646387389107,0.2,41624.0,41623.0,0.048]
[1646387389307,0.2,41624.0,41623.0,0.098]
[1646387394609,0.06662653,41621.0,41619.0,0.19845865]
[1646387394813,0.06662653,41621.0,41617.0,0.19845865]
[1646387395009,0.06662653,41621.0,41616.0,0.19845865]
[1646387395209,0.5,41624.0,41616.0,0.19845865]
[1646387395210,0.501,41624.0,41616.0,0.19845865]
[1646387395410,0.201,41624.0,41616.0,0.19845865]
[1646387395611,0.201,41624.0,41618.0,0.22938795]
[1646387396011,0.201,41624.0,41618.0,0.27938795]
[1646387396212,0.201,41624.0,41618.0,0.32938795]
[1646387396612,0.2,41624.0,41618.0,0.32938795]
[1646387400260,0.2,41624.0,41618.0,0.22938795]
[1646387400460,0.2,41624.0,41616.0,0.05]
[1646387400661,0.2,41624.0,41615.0,0.29845865]
[1646387401413,0.2,41624.0,41616.0,0.24814768]
[1646387401810,0.2,41624.0,41616.0,0.6366387]
[1646387402209,0.2,41624.0,41616.0,0.44660633]
[1646387403112,0.2,41624.0,41616.0,0.6171881]
[1646387403310,0.2,41624.0,41616.0,0.44660633]
[1646387406567,0.2,41624.0,41617.0,0.25855365]
[1646387406765,0.2,41624.0,41623.0,0.28688296]
[1646387408166,0.2,41624.0,41623.0,0.33688296]
[1646387409208,0.2,41624.0,41623.0,0.28688296]
[1646387410213,0.2,41624.0,41623.0,0.33688296]
[1646387411313,0.2,41624.0,41623.0,0.28688296]
[1646387412167,0.2,41624.0,41623.0,0.76329524]
[1646387412361,0.2,41624.0,41623.0,0.89061096]
[1646387412564,0.2,41624.0,41623.0,0.57900323]
[1646387412760,0.2,41624.0,41623.0,0.49060136]
[1646387413461,0.2,41624.0,41623.0,0.85632936]
[1646387413760,0.2,41624.0,41623.0,0.66067272]
[1646387414662,0.19714763,41632.0,41631.0,0.15166968]
[1646387415665,0.19714763,41633.0,41631.0,0.15166968]
[1646387415915,0.3,41632.0,41631.0,0.15166968]
[1646387416517,0.52611386,41632.0,41631.0,0.15166968]
[1646387416720,0.73868366,41632.0,41631.0,0.15166968]
[1646387418218,1.03573668,41632.0,41631.0,0.15166968]
[1646387418621,0.73868366,41632.0,41631.0,0.15166968]
[1646387418819,1.03573668,41632.0,41631.0,0.15166968]
[1646387419020,0.82316688,41632.0,41631.0,0.15166968]
[1646387419222,0.82316688,41632.0,41631.0,0.14966968]
[1646387419659,0.52316688,41632.0,41631.0,0.14966968]
[1646387420061,0.42863768,41632.0,41631.0,0.14966968]
[1646387420462,0.7256907,41632.0,41631.0,0.14966968]
[1646387420963,1.4,41631.0,41620.0,0.1168]
[1646387421170,0.06191192,41622.0,41620.0,0.1168]
[1646387421366,0.06191192,41622.0,41613.0,0.42603609]
[1646387421563,0.19700686,41623.0,41613.0,0.22759327]
[1646387421765,0.19700686,41622.0,41613.0,0.22759327]
[1646387422362,0.19700686,41622.0,41613.0,0.27759327]
[1646387423423,0.19700686,41622.0,41613.0,0.47061503]
[1646387424420,0.44035842,41624.0,41613.0,0.47061503]
[1646387424616,0.44035842,41624.0,41613.0,0.66905785]
[1646387424617,0.43935842,41624.0,41613.0,0.66905785]
[1646387425416,0.19700686,41624.0,41613.0,0.66905785]
[1646387426016,0.19700686,41624.0,41613.0,0.96905785]
[1646387427269,0.19700686,41625.0,41613.0,0.96905785]
[1646387427469,0.19700686,41625.0,41614.0,0.19844282]
[1646387427670,0.19700686,41626.0,41620.0,0.21027005]
[1646387427871,0.19700686,41626.0,41618.0,0.060095]
[1646387428269,0.19700686,41626.0,41615.0,0.67264282]
[1646387428471,0.19700686,41626.0,41615.0,0.65246282]
[1646387428870,0.19700686,41626.0,41617.0,0.262134]
[1646387429872,0.19700686,41626.0,41620.0,0.20933462]
[1646387430372,0.51448335,41628.0,41617.0,0.262134]
[1646387430373,0.19700686,41625.0,41617.0,0.262134]
[1646387431512,0.19700686,41625.0,41620.0,0.17421789]
[1646387434019,0.19700686,41628.0,41621.0,0.3]
[1646387434223,0.19700686,41629.0,41622.0,0.060088]
[1646387434420,0.19700686,41629.0,41623.0,0.048]
[1646387435366,0.19700686,41629.0,41619.0,0.01309611]
[1646387435367,0.05556426,41625.0,41617.0,0.19844282]
[1646387435567,0.25257112,41625.0,41621.0,0.05]
[1646387435765,0.25257112,41625.0,41615.0,0.5742]
[1646387435963,0.19700686,41624.0,41615.0,0.35]
[1646387436364,0.19700686,41624.0,41617.0,0.26739338]
[1646387436564,0.19700686,41624.0,41617.0,0.05]
[1646387436966,0.19700686,41624.0,41615.0,0.35]
[1646387437265,0.19700686,41623.0,41614.0,0.170188]
[1646387437666,0.19700686,41623.0,41619.0,0.23333857]
[1646387438312,0.19700686,41623.0,41614.0,0.170188]
[1646387439515,0.23772304,41622.0,41616.0,0.22385186]
[1646387439716,0.19700686,41623.0,41616.0,0.27385186]
[1646387441919,0.19700686,41623.0,41616.0,0.05]
[1646387442164,0.39490346,41623.0,41614.0,0.05]
[1646387442365,0.39490346,41623.0,41613.0,0.31479762]
[1646387442366,0.19700686,41623.0,41613.0,0.31479762]
[1646387442969,0.06721212,41621.0,41613.0,0.15]
[1646387443169,0.06721212,41621.0,41612.0,0.01]
[1646387443170,0.19700686,41621.0,41612.0,0.01]
[1646387443368,0.19700686,41620.0,41612.0,0.01]
[1646387444569,0.24700686,41620.0,41612.0,0.00327561]
[1646387444973,0.19700686,41618.0,41612.0,0.00327561]
[1646387445173,0.46538216,41619.0,41612.0,0.00327561]
[1646387445174,0.06029157,41614.0,41612.0,0.00327561]
[1646387445374,0.3,41613.0,41612.0,0.00327561]
[1646387445573,0.21428032,41613.0,41612.0,0.00327561]
[1646387446020,0.21428032,41613.0,41604.0,0.19844282]
[1646387446024,0.07450308,41605.0,41604.0,0.19844282]
[1646387446220,0.07450308,41605.0,41601.0,0.19844282]
[1646387446422,0.07450308,41605.0,41600.0,0.19954282]
[1646387446619,0.07450308,41605.0,41600.0,0.0011]
[1646387447020,0.4204,41611.0,41600.0,0.0011]
[1646387448024,0.27909596,41601.0,41600.0,0.0011]
[1646387448222,0.3,41605.0,41600.0,0.0011]
[1646387448423,0.05,41608.0,41600.0,0.0011]
[1646387448623,0.35,41610.0,41600.0,0.0011]
[1646387449222,0.21021098,41603.0,41600.0,0.0011]
[1646387449420,0.35,41610.0,41600.0,0.0011]
[1646387450666,0.27751869,41604.0,41600.0,0.0011]
[1646387451065,0.50897405,41610.0,41600.0,0.0011]
[1646387451366,0.35,41610.0,41600.0,0.0011]
[1646387451965,0.25566961,41609.0,41600.0,0.0011]
[1646387453413,0.25566961,41609.0,41600.0,0.16256577]
[1646387453716,0.25566961,41609.0,41600.0,0.0011]
[1646387455819,0.06921418,41604.0,41600.0,0.0011]
[1646387456017,0.3,41603.0,41600.0,0.0011]
[1646387456415,0.06921418,41604.0,41600.0,0.0011]
[1646387456817,0.25948176,41601.0,41600.0,0.0011]
[1646387457273,0.30948176,41601.0,41600.0,0.0011]
[1646387458576,0.35338361,41601.0,41600.0,0.0011]
[1646387458774,0.30948176,41601.0,41600.0,0.0011]
[1646387459174,0.52457088,41601.0,41600.0,0.0011]
[1646387459577,0.89160245,41601.0,41600.0,0.0011]
[1646387460812,0.93960245,41601.0,41600.0,0.0011]
[1646387461017,1.09861814,41601.0,41600.0,0.0011]
[1646387461214,0.93960245,41601.0,41600.0,0.0011]
[1646387462111,1.40197447,41601.0,41591.0,0.01]
[1646387462311,1.40197447,41601.0,41590.0,0.0011]
[1646387462312,1.55902439,41600.0,41590.0,0.0011]
[1646387462514,0.7801,41599.0,41590.0,0.0011]
[1646387462712,0.4,41598.0,41590.0,0.0011]
[1646387462912,0.16311956,41595.0,41590.0,0.0011]
[1646387463113,0.8821,41593.0,41581.0,0.0031]
[1646387463313,0.7321,41589.0,41580.0,0.0003]
[1646387463513,1.4,41590.0,41580.0,0.0003]
[1646387463514,1.0801,41588.0,41580.0,0.0003]
[1646387463714,0.1153559,41587.0,41580.0,0.0003]
[1646387464314,0.20246217,41584.0,41580.0,0.0003]
[1646387464574,0.20246217,41584.0,41575.0,0.0041]
[1646387464575,1.4,41580.0,41575.0,0.0041]
[1646387464777,1.4,41578.0,41574.0,0.002]
[1646387464975,0.048,41577.0,41574.0,0.002]
[1646387465172,0.448,41577.0,41574.0,0.002]
[1646387465573,0.47162345,41576.0,41574.0,0.002]
[1646387465773,0.348,41575.0,41574.0,0.002]
[1646387465973,0.828,41575.0,41573.0,0.0021]
[1646387466175,0.828,41575.0,41558.0,0.0011]
[1646387466176,1.4,41573.0,41558.0,0.0011]
[1646387466377,0.06197192,41572.0,41558.0,0.0011]
[1646387466574,0.3,41571.0,41558.0,0.0011]
[1646387466774,0.35,41571.0,41558.0,0.0011]
[1646387466973,0.35,41571.0,41560.0,0.24094659]
[1646387467174,0.3,41571.0,41560.0,0.24094659]
[1646387467374,0.06197192,41572.0,41560.0,0.24094659]
[1646387467573,0.06197192,41572.0,41558.0,0.0011]
[1646387467574,0.16191941,41570.0,41558.0,0.0011]
[1646387467773,0.3,41571.0,41558.0,0.0011]
[1646387467774,0.3,41569.0,41558.0,0.0011]
[1646387467973,0.048,41571.0,41558.0,0.0011]
[1646387468416,0.048,41571.0,41563.0,0.22433198]
[1646387468820,0.048,41571.0,41560.0,0.1851921]
[1646387469018,0.048,41571.0,41558.0,0.0011]
[1646387469515,0.048,41571.0,41563.0,0.19321303]
[1646387470017,0.048,41571.0,41566.0,0.20537881]
[1646387470223,0.048,41571.0,41566.0,0.25537881]
[1646387470418,0.005,41574.0,41569.0,0.365728]
[1646387470820,0.05,41583.0,41570.0,7.55e-05]
[1646387471019,0.15907867,41585.0,41570.0,0.3]